[Event "Early-Titled-Tuesday-Blitz-February-27-2024"]
[Site "Chess.com"]
[Date "2024.02.27"]
[Round "2"]
[White "HajiyevKanan"]
[Black "AlexandraSamaganova"]
[Result "1-0"]
[WhiteElo "2525"]
[BlackElo "2289"]
[TimeControl "180+1"]
[EndTime "8:17:48 PST"]
[Termination "HajiyevKanan won by checkmate"]

1. d4 {[%clk 0:02:43.1]} 1... Nf6 {[%clk 0:02:59.4]} 2. Nf3 {[%clk 0:02:43.9]}
2... e6 {[%clk 0:02:57]} 3. c4 {[%clk 0:02:44.8]} 3... b6 {[%clk 0:02:53.4]} 4.
Nc3 {[%clk 0:02:45]} 4... Bb7 {[%clk 0:02:53.5]} 5. a3 {[%clk 0:02:43.3]} 5...
Be7 {[%clk 0:02:53.4]} 6. Qc2 {[%clk 0:02:42.2]} 6... O-O {[%clk 0:02:52.7]} 7.
e4 {[%clk 0:02:42.5]} 7... d6 {[%clk 0:02:52.5]} 8. Bd3 {[%clk 0:02:42.2]} 8...
h6 {[%clk 0:02:47.4]} 9. Rg1 {[%clk 0:02:41.1]} 9... c5 {[%clk 0:02:39.1]} 10.
d5 {[%clk 0:02:39.6]} 10... e5 {[%clk 0:02:37.3]} 11. g4 {[%clk 0:02:39.2]}
11... Nh7 {[%clk 0:02:36.3]} 12. Be3 {[%clk 0:02:34]} 12... Nd7 {[%clk
0:02:28.8]} 13. Qd2 {[%clk 0:02:31.8]} 13... Ng5 {[%clk 0:02:22.9]} 14. Nxg5
{[%clk 0:02:25]} 14... Bxg5 {[%clk 0:02:22.5]} 15. O-O-O {[%clk 0:02:24.5]}
15... Bxe3 {[%clk 0:02:11.7]} 16. Qxe3 {[%clk 0:02:07.4]} 16... Qg5 {[%clk
0:02:08.3]} 17. Qxg5 {[%clk 0:02:00.3]} 17... hxg5 {[%clk 0:02:08.2]} 18. Rh1
{[%clk 0:01:57.9]} 18... g6 {[%clk 0:01:59.4]} 19. Nb5 {[%clk 0:01:57.7]} 19...
Nf6 {[%clk 0:01:38.2]} 20. Nxd6 {[%clk 0:01:44.6]} 20... Ba6 {[%clk 0:01:32.2]}
21. f3 {[%clk 0:01:38.9]} 21... Rfd8 {[%clk 0:01:17.8]} 22. Nb5 {[%clk 0:01:39]}
22... Bxb5 {[%clk 0:01:17.6]} 23. cxb5 {[%clk 0:01:39.9]} 23... Ne8 {[%clk
0:01:14.5]} 24. Bc4 {[%clk 0:01:16.1]} 24... Nd6 {[%clk 0:01:13.8]} 25. b3
{[%clk 0:01:17]} 25... a6 {[%clk 0:01:11.1]} 26. bxa6 {[%clk 0:01:01.4]} 26...
b5 {[%clk 0:01:10.7]} 27. Be2 {[%clk 0:01:02.2]} 27... Rxa6 {[%clk 0:00:51.9]}
28. Kb2 {[%clk 0:01:02.2]} 28... Rda8 {[%clk 0:00:51.1]} 29. a4 {[%clk
0:00:49.6]} 29... c4 {[%clk 0:00:47.5]} 30. Ra1 {[%clk 0:00:49.2]} 30... bxa4
{[%clk 0:00:42.3]} 31. bxc4 {[%clk 0:00:27.3]} 31... Rb8+ {[%clk 0:00:38.2]} 32.
Kc2 {[%clk 0:00:27.8]} 32... Rc8 {[%clk 0:00:35.9]} 33. Kc3 {[%clk 0:00:22.8]}
33... Nb5+ {[%clk 0:00:32.2]} 34. Kd3 {[%clk 0:00:16.9]} 34... Nd4 {[%clk
0:00:33.1]} 35. Rhb1 {[%clk 0:00:15.9]} 35... a3 {[%clk 0:00:33.3]} 36. Bd1
{[%clk 0:00:14.6]} 36... Kg7 {[%clk 0:00:33.2]} 37. Ra2 {[%clk 0:00:10.5]} 37...
Ra5 {[%clk 0:00:31.4]} 38. Rb4 {[%clk 0:00:10.7]} 38... Rh8 {[%clk 0:00:28.2]}
39. Kc3 {[%clk 0:00:05.4]} 39... Rh3 {[%clk 0:00:26.9]} 40. Kd3 {[%clk 0:00:05]}
40... Nxf3 {[%clk 0:00:26.9]} 41. Bxf3 {[%clk 0:00:05.5]} 41... Rxf3+ {[%clk
0:00:27.8]} 42. Ke2 {[%clk 0:00:06.2]} 42... Rf4 {[%clk 0:00:26.1]} 43. Ke3
{[%clk 0:00:06.1]} 43... Rxg4 {[%clk 0:00:26.4]} 44. d6 {[%clk 0:00:06.2]} 44...
Ra7 {[%clk 0:00:20.6]} 45. c5 {[%clk 0:00:06.5]} 45... Kf6 {[%clk 0:00:17.8]}
46. c6 {[%clk 0:00:05.8]} 46... Ke6 {[%clk 0:00:17.4]} 47. c7 {[%clk 0:00:06.5]}
47... Ra8 {[%clk 0:00:12.3]} 48. Rb8 {[%clk 0:00:06.5]} 48... Ra4 {[%clk
0:00:09.5]} 49. c8=Q+ {[%clk 0:00:06.6]} 49... Kf6 {[%clk 0:00:10.4]} 50. Qd8+
{[%clk 0:00:06.1]} 50... Kg7 {[%clk 0:00:10.6]} 51. Qh8# {[%clk 0:00:06.2]} 1-0

[Event "Early-Titled-Tuesday-Blitz-February-27-2024"]
[Site "Chess.com"]
[Date "2024.02.27"]
[Round "2"]
[White "krzyzan94"]
[Black "sathvikadiga"]
[Result "1-0"]
[WhiteElo "2795"]
[BlackElo "2551"]
[TimeControl "180+1"]
[EndTime "8:17:49 PST"]
[Termination "krzyzan94 won by checkmate"]

1. Nf3 {[%clk 0:03:00.9]} 1... Nf6 {[%clk 0:02:59]} 2. g3 {[%clk 0:03:01.3]}
2... g6 {[%clk 0:02:59.6]} 3. Bg2 {[%clk 0:03:01.8]} 3... Bg7 {[%clk 0:03:00.5]}
4. O-O {[%clk 0:03:02.3]} 4... O-O {[%clk 0:03:01.4]} 5. c4 {[%clk 0:03:00.5]}
5... d6 {[%clk 0:03:02.3]} 6. d4 {[%clk 0:03:00.6]} 6... Nc6 {[%clk 0:03:02.9]}
7. Nc3 {[%clk 0:02:59.3]} 7... e5 {[%clk 0:03:03.3]} 8. dxe5 {[%clk 0:02:51.4]}
8... dxe5 {[%clk 0:03:04.2]} 9. Bg5 {[%clk 0:02:49.5]} 9... h6 {[%clk
0:03:02.5]} 10. Qxd8 {[%clk 0:02:35.1]} 10... Rxd8 {[%clk 0:03:03.4]} 11. Be3
{[%clk 0:02:23.1]} 11... Be6 {[%clk 0:02:55.9]} 12. Nd2 {[%clk 0:02:09.5]} 12...
Ng4 {[%clk 0:02:52.3]} 13. Nd5 {[%clk 0:02:08.5]} 13... Nxe3 {[%clk 0:02:42.4]}
14. fxe3 {[%clk 0:02:09.4]} 14... Rac8 {[%clk 0:02:42.6]} 15. Ne4 {[%clk
0:02:06]} 15... b6 {[%clk 0:02:22.8]} 16. Nef6+ {[%clk 0:02:03.7]} 16... Kh8
{[%clk 0:02:14.9]} 17. Rad1 {[%clk 0:02:00.1]} 17... Rd6 {[%clk 0:02:11.4]} 18.
Rd3 {[%clk 0:01:44.2]} 18... Bf5 {[%clk 0:02:00]} 19. e4 {[%clk 0:01:31.4]}
19... Be6 {[%clk 0:01:35.3]} 20. e3 {[%clk 0:01:30.7]} 20... Rcd8 {[%clk
0:01:31.2]} 21. c5 {[%clk 0:01:27.9]} 21... bxc5 {[%clk 0:01:26.1]} 22. Rc3
{[%clk 0:01:28.1]} 22... Nb4 {[%clk 0:01:07.9]} 23. Rxc5 {[%clk 0:01:21.1]}
23... Nxd5 {[%clk 0:01:04.6]} 24. Nxd5 {[%clk 0:01:06.2]} 24... c6 {[%clk
0:01:03.6]} 25. Nb4 {[%clk 0:00:58.6]} 25... Rb8 {[%clk 0:00:54.8]} 26. a3
{[%clk 0:00:55.9]} 26... Rd2 {[%clk 0:00:51.9]} 27. Rfc1 {[%clk 0:00:25.2]}
27... Rxb2 {[%clk 0:00:28.1]} 28. Nxc6 {[%clk 0:00:24.8]} 28... R8b3 {[%clk
0:00:28.1]} 29. Nd8 {[%clk 0:00:20.3]} 29... Rxe3 {[%clk 0:00:17.2]} 30. Nxe6
{[%clk 0:00:20.4]} 30... fxe6 {[%clk 0:00:18.1]} 31. Rc8+ {[%clk 0:00:19]} 31...
Kh7 {[%clk 0:00:18.1]} 32. Bf1 {[%clk 0:00:17.8]} 32... Rxe4 {[%clk 0:00:16.4]}
33. R8c7 {[%clk 0:00:17.5]} 33... h5 {[%clk 0:00:15.4]} 34. Rxa7 {[%clk
0:00:17.5]} 34... Kh6 {[%clk 0:00:10.1]} 35. Rcc7 {[%clk 0:00:18.1]} 35... Bf8
{[%clk 0:00:06.1]} 36. h4 {[%clk 0:00:16.8]} 36... g5 {[%clk 0:00:06.5]} 37.
Rh7+ {[%clk 0:00:16.6]} 37... Kg6 {[%clk 0:00:07]} 38. Bd3 {[%clk 0:00:17.4]}
38... Kf5 {[%clk 0:00:05.5]} 39. Raf7+ {[%clk 0:00:14.4]} 39... Kg4 {[%clk
0:00:05.4]} 40. Bxe4 {[%clk 0:00:14.7]} 40... Bc5+ {[%clk 0:00:04.8]} 41. Kh1
{[%clk 0:00:14.6]} 41... Kxg3 {[%clk 0:00:05.1]} 42. Rf3+ {[%clk 0:00:14.1]}
42... Kxh4 {[%clk 0:00:05.5]} 43. Bg6 {[%clk 0:00:07.8]} 43... Ra2 {[%clk
0:00:03]} 44. Bxh5 {[%clk 0:00:04.8]} 44... Ra1+ {[%clk 0:00:02.7]} 45. Kg2
{[%clk 0:00:05.4]} 45... Rg1+ {[%clk 0:00:02.7]} 46. Kh2 {[%clk 0:00:05.8]}
46... Ra1 {[%clk 0:00:02.2]} 47. Rh3# {[%clk 0:00:06.3]} 1-0

[Event "Early-Titled-Tuesday-Blitz-February-27-2024"]
[Site "Chess.com"]
[Date "2024.02.27"]
[Round "2"]
[White "Honiex"]
[Black "Nbk90"]
[Result "1-0"]
[WhiteElo "2540"]
[BlackElo "2314"]
[TimeControl "180+1"]
[EndTime "8:17:49 PST"]
[Termination "Honiex won by resignation"]

1. Nc3 {[%clk 0:03:00.9]} 1... e5 {[%clk 0:02:44.2]} 2. Nf3 {[%clk 0:03:00]}
2... Nc6 {[%clk 0:02:43.7]} 3. d4 {[%clk 0:02:59.9]} 3... exd4 {[%clk
0:02:43.1]} 4. Nxd4 {[%clk 0:03:00.8]} 4... Qf6 {[%clk 0:02:39.6]} 5. Ndb5
{[%clk 0:02:51.9]} 5... Bd6 {[%clk 0:02:22.1]} 6. Nd5 {[%clk 0:02:40.2]} 6...
Qd8 {[%clk 0:02:20.5]} 7. Nxd6+ {[%clk 0:02:28.1]} 7... cxd6 {[%clk 0:02:19.5]}
8. Bf4 {[%clk 0:02:28.1]} 8... Ne5 {[%clk 0:01:42.8]} 9. Qd4 {[%clk 0:02:19.3]}
9... Nf6 {[%clk 0:01:15.9]} 10. O-O-O {[%clk 0:01:50.2]} 10... O-O {[%clk
0:01:01.3]} 11. e3 {[%clk 0:01:34.8]} 11... Neg4 {[%clk 0:00:20]} 12. Nxf6+
{[%clk 0:01:19.1]} 12... Qxf6 {[%clk 0:00:16.3]} 13. Qxf6 {[%clk 0:01:18.2]}
13... Nxf6 {[%clk 0:00:11.5]} 14. Bxd6 {[%clk 0:01:13.2]} 14... Re8 {[%clk
0:00:11.6]} 15. Bc4 {[%clk 0:00:49.9]} 15... b6 {[%clk 0:00:10.9]} 16. Rhe1
{[%clk 0:00:45.6]} 16... Bb7 {[%clk 0:00:10.6]} 17. f3 {[%clk 0:00:45]} 17...
Rac8 {[%clk 0:00:10]} 18. Bb3 {[%clk 0:00:42.9]} 18... a5 {[%clk 0:00:09.9]} 19.
e4 {[%clk 0:00:42.1]} 19... b5 {[%clk 0:00:09.9]} 20. a4 {[%clk 0:00:40.8]}
20... bxa4 {[%clk 0:00:09]} 21. Bxa4 {[%clk 0:00:40.6]} 21... Bc6 {[%clk
0:00:08.9]} 22. Bb3 {[%clk 0:00:36.9]} 22... a4 {[%clk 0:00:08.2]} 23. Ba2
{[%clk 0:00:36.7]} 23... Bb5 {[%clk 0:00:06.6]} 24. Kb1 {[%clk 0:00:35.2]} 24...
Rc6 {[%clk 0:00:06.1]} 25. c3 {[%clk 0:00:30.8]} 25... h6 {[%clk 0:00:05.6]} 26.
Bb4 {[%clk 0:00:28.1]} 26... Rec8 {[%clk 0:00:05.1]} 27. e5 {[%clk 0:00:25.8]}
27... Nh5 {[%clk 0:00:05.3]} 28. Rxd7 {[%clk 0:00:23.8]} 28... Rc4 {[%clk
0:00:03.8]} 29. Bxc4 {[%clk 0:00:16.3]} 29... Bxd7 {[%clk 0:00:03.2]} 30. Ba2
{[%clk 0:00:12.6]} 30... Nf4 {[%clk 0:00:02.8]} 31. g3 {[%clk 0:00:06.9]} 31...
Nd3 {[%clk 0:00:03.1]} 32. Rd1 {[%clk 0:00:05.8]} 32... Bf5 {[%clk 0:00:04]} 33.
g4 {[%clk 0:00:04.1]} 33... Nxb4+ {[%clk 0:00:04.2]} 34. gxf5 {[%clk 0:00:03.2]}
34... Nc6 {[%clk 0:00:04.6]} 35. e6 {[%clk 0:00:02.8]} 35... f6 {[%clk
0:00:03.3]} 36. e7+ {[%clk 0:00:03]} 36... Kh7 {[%clk 0:00:03.7]} 37. Re1 {[%clk
0:00:03]} 37... Re8 {[%clk 0:00:03.4]} 38. Bc4 {[%clk 0:00:03.6]} 38... Rxe7
{[%clk 0:00:03.8]} 39. Rxe7 {[%clk 0:00:03.8]} 39... Nxe7 {[%clk 0:00:04.7]} 40.
Bb5 {[%clk 0:00:04.3]} 40... Nxf5 {[%clk 0:00:05.1]} 41. Bxa4 {[%clk 0:00:05.1]}
41... Nh4 {[%clk 0:00:05.4]} 42. Bc6 {[%clk 0:00:05.4]} 42... g5 {[%clk
0:00:05.1]} 43. b4 {[%clk 0:00:05.9]} 43... Kg7 {[%clk 0:00:05.5]} 44. b5 {[%clk
0:00:06.6]} 44... Kf7 {[%clk 0:00:06.4]} 45. b6 {[%clk 0:00:07.2]} 45... Ke7
{[%clk 0:00:04.8]} 46. b7 {[%clk 0:00:07.8]} 46... Kd6 {[%clk 0:00:05.4]} 47.
b8=Q+ {[%clk 0:00:08.2]} 47... Kxc6 {[%clk 0:00:06.3]} 48. Qf8 {[%clk
0:00:08.6]} 48... Nxf3 {[%clk 0:00:05.8]} 49. Qxf6+ {[%clk 0:00:08.7]} 1-0

[Event "Early-Titled-Tuesday-Blitz-February-27-2024"]
[Site "Chess.com"]
[Date "2024.02.27"]
[Round "2"]
[White "Flaccidmoves"]
[Black "deepfear"]
[Result "1-0"]
[WhiteElo "2448"]
[BlackElo "1975"]
[TimeControl "180+1"]
[EndTime "8:17:49 PST"]
[Termination "Flaccidmoves won on time"]

1. c4 {[%clk 0:03:00.9]} 1... g6 {[%clk 0:02:42.1]} 2. Nc3 {[%clk 0:02:59.9]}
2... Bg7 {[%clk 0:02:40.6]} 3. e4 {[%clk 0:02:58.5]} 3... d6 {[%clk 0:02:34.4]}
4. d4 {[%clk 0:02:58.2]} 4... Nf6 {[%clk 0:02:32.8]} 5. Nf3 {[%clk 0:02:58.7]}
5... O-O {[%clk 0:02:31.9]} 6. h3 {[%clk 0:02:58.9]} 6... e5 {[%clk 0:02:29.9]}
7. d5 {[%clk 0:02:58.4]} 7... Nbd7 {[%clk 0:02:27.7]} 8. g4 {[%clk 0:02:28.3]}
8... Nc5 {[%clk 0:02:03.4]} 9. Qc2 {[%clk 0:02:28.2]} 9... a5 {[%clk 0:02:01.7]}
10. Be3 {[%clk 0:02:18.3]} 10... b6 {[%clk 0:01:56.2]} 11. Nd2 {[%clk
0:01:55.2]} 11... h6 {[%clk 0:01:18.4]} 12. Be2 {[%clk 0:01:53.9]} 12... Nh7
{[%clk 0:01:17.5]} 13. h4 {[%clk 0:01:53.1]} 13... f5 {[%clk 0:01:09.7]} 14.
gxf5 {[%clk 0:01:52.9]} 14... gxf5 {[%clk 0:01:10.1]} 15. O-O-O {[%clk
0:01:20.4]} 15... f4 {[%clk 0:01:08.5]} 16. Bxc5 {[%clk 0:01:20.2]} 16... bxc5
{[%clk 0:00:58.3]} 17. Rdg1 {[%clk 0:01:20.4]} 17... Kh8 {[%clk 0:00:57.2]} 18.
Bg4 {[%clk 0:01:20.1]} 18... Bf6 {[%clk 0:00:47.6]} 19. Nf3 {[%clk 0:01:17]}
19... Bxg4 {[%clk 0:00:36.5]} 20. Rxg4 {[%clk 0:01:16.7]} 20... Qd7 {[%clk
0:00:36.4]} 21. Rg6 {[%clk 0:01:16]} 21... Bg7 {[%clk 0:00:21]} 22. Rhg1 {[%clk
0:01:01.7]} 22... Rf7 {[%clk 0:00:20.3]} 23. Nh2 {[%clk 0:00:33.9]} 23... Qe7
{[%clk 0:00:13.6]} 24. h5 {[%clk 0:00:28.2]} 24... Ng5 {[%clk 0:00:12.8]} 25.
Ng4 {[%clk 0:00:20.6]} 25... Kh7 {[%clk 0:00:12.9]} 26. Qe2 {[%clk 0:00:18.8]}
26... a4 {[%clk 0:00:11.7]} 27. a3 {[%clk 0:00:18.6]} 27... Rb8 {[%clk
0:00:10.9]} 28. Nxa4 {[%clk 0:00:18.5]} 28... Qe8 {[%clk 0:00:04.7]} 29. Nc3
{[%clk 0:00:18.2]} 29... Rb7 {[%clk 0:00:02.3]} 30. f3 {[%clk 0:00:18.1]} 30...
Qb8 {[%clk 0:00:02.7]} 31. Qg2 {[%clk 0:00:17.9]} 31... Rb3 {[%clk 0:00:01.5]}
32. Qc2 {[%clk 0:00:16.8]} 32... Rd7 {[%clk 0:00:01.9]} 33. Nh2 {[%clk
0:00:16.2]} 33... Rf7 {[%clk 0:00:02.8]} 34. R6xg5 {[%clk 0:00:16.1]} 34... hxg5
{[%clk 0:00:02.7]} 35. Rxg5 {[%clk 0:00:17]} 35... Rd7 {[%clk 0:00:02.8]} 36.
Ng4 {[%clk 0:00:17.1]} 36... Bh6 {[%clk 0:00:03.4]} 37. Rg6 {[%clk 0:00:17.2]}
37... Bg7 {[%clk 0:00:03]} 38. Re6 {[%clk 0:00:17.3]} 38... Qg8 {[%clk
0:00:02.8]} 39. h6 {[%clk 0:00:17.5]} 39... Rb8 {[%clk 0:00:02.8]} 40. hxg7
{[%clk 0:00:17.4]} 40... Qxg7 {[%clk 0:00:03.7]} 41. Qh2+ {[%clk 0:00:17.2]}
41... Kg8 {[%clk 0:00:03.7]} 42. Nf6+ {[%clk 0:00:17.1]} 42... Kf7 {[%clk
0:00:02.4]} 43. Ng4 {[%clk 0:00:17.4]} 43... Rg8 {[%clk 0:00:02.4]} 44. Qh5+
{[%clk 0:00:17.1]} 44... Qg6 {[%clk 0:00:02.2]} 45. Rxg6 {[%clk 0:00:17]} 45...
Rxg6 {[%clk 0:00:03.1]} 46. Nb5 {[%clk 0:00:17.2]} 46... Rd8 {[%clk 0:00:01.9]}
47. Nxc7 {[%clk 0:00:16.1]} 47... Rf8 {[%clk 0:00:02.3]} 48. Ne6 {[%clk
0:00:15.7]} 48... Rg8 {[%clk 0:00:02.4]} 49. Qf5+ {[%clk 0:00:15.5]} 49... Ke7
{[%clk 0:00:02]} 50. Kc2 {[%clk 0:00:15.4]} 50... Rf6 {[%clk 0:00:01.2]} 51.
Qxf6+ {[%clk 0:00:15.3]} 1-0

[Event "Early-Titled-Tuesday-Blitz-February-27-2024"]
[Site "Chess.com"]
[Date "2024.02.27"]
[Round "2"]
[White "Firouzja2003"]
[Black "Yurovskykh_Oleksandr"]
[Result "0-1"]
[WhiteElo "3074"]
[BlackElo "2669"]
[TimeControl "180+1"]
[EndTime "8:17:51 PST"]
[Termination "Yurovskykh_Oleksandr won by resignation"]

1. Nf3 {[%clk 0:02:55.1]} 1... d5 {[%clk 0:02:56.3]} 2. g3 {[%clk 0:02:56]} 2...
Nf6 {[%clk 0:02:56.8]} 3. Bg2 {[%clk 0:02:56.7]} 3... Bf5 {[%clk 0:02:57.2]} 4.
O-O {[%clk 0:02:57.6]} 4... e6 {[%clk 0:02:57.7]} 5. d3 {[%clk 0:02:58.4]} 5...
h6 {[%clk 0:02:56.4]} 6. c4 {[%clk 0:02:59.3]} 6... c6 {[%clk 0:02:55.4]} 7. Qb3
{[%clk 0:02:59.4]} 7... Qb6 {[%clk 0:02:55.4]} 8. Be3 {[%clk 0:02:59.9]} 8...
Qxb3 {[%clk 0:02:53.5]} 9. axb3 {[%clk 0:03:00.8]} 9... a6 {[%clk 0:02:53.7]}
10. Nc3 {[%clk 0:02:50.4]} 10... Nbd7 {[%clk 0:02:53.1]} 11. Rfc1 {[%clk
0:02:50.3]} 11... Bd6 {[%clk 0:02:50.4]} 12. Ra4 {[%clk 0:02:46.8]} 12... O-O
{[%clk 0:02:44]} 13. h3 {[%clk 0:02:43.8]} 13... Rfc8 {[%clk 0:02:41.2]} 14. g4
{[%clk 0:02:43.1]} 14... Bh7 {[%clk 0:02:41]} 15. Rca1 {[%clk 0:02:36.9]} 15...
Nc5 {[%clk 0:02:38.5]} 16. R4a3 {[%clk 0:02:35.2]} 16... Ncd7 {[%clk 0:02:37.3]}
17. R3a2 {[%clk 0:02:34.3]} 17... Kf8 {[%clk 0:02:15.8]} 18. Nd2 {[%clk
0:02:34]} 18... Ke8 {[%clk 0:01:59.3]} 19. d4 {[%clk 0:02:33]} 19... Kf8 {[%clk
0:01:58]} 20. c5 {[%clk 0:02:32.5]} 20... Bc7 {[%clk 0:01:55.3]} 21. f4 {[%clk
0:02:32.8]} 21... Re8 {[%clk 0:01:51.2]} 22. b4 {[%clk 0:02:32.1]} 22... Rac8
{[%clk 0:01:50]} 23. Nf3 {[%clk 0:02:17.3]} 23... Ne4 {[%clk 0:01:49.7]} 24. Ne5
{[%clk 0:02:17.2]} 24... Nxe5 {[%clk 0:01:47.7]} 25. fxe5 {[%clk 0:02:17.4]}
25... Nxc3 {[%clk 0:01:25.5]} 26. bxc3 {[%clk 0:02:18.3]} 26... Ke7 {[%clk
0:01:24.9]} 27. Bf4 {[%clk 0:02:16.7]} 27... f6 {[%clk 0:01:20.5]} 28. exf6+
{[%clk 0:02:15.6]} 28... Kxf6 {[%clk 0:01:20.7]} 29. e3 {[%clk 0:02:07.7]} 29...
g5 {[%clk 0:01:10.8]} 30. Be5+ {[%clk 0:01:15.1]} 30... Bxe5 {[%clk 0:01:07.8]}
31. Rf2+ {[%clk 0:01:14.6]} 31... Kg7 {[%clk 0:00:50.3]} 32. dxe5 {[%clk
0:01:14.9]} 32... Rf8 {[%clk 0:00:50.8]} 33. Bf1 {[%clk 0:00:57.5]} 33... Rxf2
{[%clk 0:00:47.7]} 34. Kxf2 {[%clk 0:00:58.4]} 34... Be4 {[%clk 0:00:48]} 35.
Be2 {[%clk 0:00:58.2]} 35... Rf8+ {[%clk 0:00:47.8]} 36. Kg3 {[%clk 0:00:58.5]}
36... Rf7 {[%clk 0:00:45.8]} 37. Rd1 {[%clk 0:00:58.3]} 37... Rf8 {[%clk
0:00:44.6]} 38. Rd4 {[%clk 0:00:58.4]} 38... Kf7 {[%clk 0:00:40.1]} 39. c4
{[%clk 0:00:56.1]} 39... Ke7 {[%clk 0:00:40]} 40. b5 {[%clk 0:00:49.2]} 40... a5
{[%clk 0:00:26.3]} 41. cxd5 {[%clk 0:00:45.1]} 41... exd5 {[%clk 0:00:24.1]} 42.
Ra4 {[%clk 0:00:41.3]} 42... Ra8 {[%clk 0:00:23.9]} 43. b6 {[%clk 0:00:17.1]}
43... Ke6 {[%clk 0:00:23.4]} 44. Bd1 {[%clk 0:00:18]} 44... Bd3 {[%clk 0:00:16]}
45. Ra3 {[%clk 0:00:09.4]} 45... Bb5 {[%clk 0:00:16.1]} 46. h4 {[%clk
0:00:07.8]} 46... Kxe5 {[%clk 0:00:16]} 47. Bc2 {[%clk 0:00:05.6]} 47... a4
{[%clk 0:00:15.6]} 48. Bf5 {[%clk 0:00:05.2]} 48... d4 {[%clk 0:00:14.1]} 49.
exd4+ {[%clk 0:00:02]} 49... Kxd4 {[%clk 0:00:15]} 50. hxg5 {[%clk 0:00:01.8]}
50... hxg5 {[%clk 0:00:15.1]} 51. Kf3 {[%clk 0:00:02.3]} 51... Kxc5 {[%clk
0:00:14.8]} 52. Ke4 {[%clk 0:00:03.2]} 52... Re8+ {[%clk 0:00:14.4]} 53. Kf3
{[%clk 0:00:04.1]} 53... Kxb6 {[%clk 0:00:14.1]} 0-1

[Event "Early-Titled-Tuesday-Blitz-February-27-2024"]
[Site "Chess.com"]
[Date "2024.02.27"]
[Round "2"]
[White "Chopper1905"]
[Black "ozates"]
[Result "1-0"]
[WhiteElo "2930"]
[BlackElo "2607"]
[TimeControl "180+1"]
[EndTime "8:17:51 PST"]
[Termination "Chopper1905 won by resignation"]

1. d4 {[%clk 0:02:56.4]} 1... Nf6 {[%clk 0:02:58.4]} 2. c4 {[%clk 0:02:56.1]}
2... e6 {[%clk 0:02:58.2]} 3. Nc3 {[%clk 0:02:56.2]} 3... d5 {[%clk 0:02:58.2]}
4. cxd5 {[%clk 0:02:56]} 4... Nxd5 {[%clk 0:02:52.5]} 5. e3 {[%clk 0:02:56]}
5... c5 {[%clk 0:02:52]} 6. Bd3 {[%clk 0:02:55.8]} 6... Be7 {[%clk 0:02:51.7]}
7. Nf3 {[%clk 0:02:54.8]} 7... O-O {[%clk 0:02:52.1]} 8. O-O {[%clk 0:02:53]}
8... Nc6 {[%clk 0:02:52.1]} 9. a3 {[%clk 0:02:41]} 9... b6 {[%clk 0:02:36.1]}
10. Qc2 {[%clk 0:02:31.6]} 10... Nf6 {[%clk 0:02:33]} 11. dxc5 {[%clk
0:02:28.2]} 11... Bxc5 {[%clk 0:02:33.9]} 12. Ne4 {[%clk 0:02:27.1]} 12... Bb7
{[%clk 0:02:18.2]} 13. Rd1 {[%clk 0:01:46.1]} 13... Nxe4 {[%clk 0:02:06]} 14.
Bxe4 {[%clk 0:01:47]} 14... Qf6 {[%clk 0:02:06.3]} 15. Rd7 {[%clk 0:01:16.3]}
15... Rab8 {[%clk 0:01:53.4]} 16. Rxb7 {[%clk 0:01:01.4]} 16... Rxb7 {[%clk
0:01:54.3]} 17. Bxc6 {[%clk 0:01:01.6]} 17... Rc7 {[%clk 0:01:54.4]} 18. Be4
{[%clk 0:01:01.9]} 18... g6 {[%clk 0:01:54.5]} 19. Bd2 {[%clk 0:01:00.8]} 19...
Rfc8 {[%clk 0:01:42.8]} 20. Bc3 {[%clk 0:00:57.4]} 20... Qe7 {[%clk 0:01:42.8]}
21. Qa4 {[%clk 0:00:48.9]} 21... Bd6 {[%clk 0:01:39]} 22. Qd4 {[%clk 0:00:44.3]}
22... e5 {[%clk 0:01:39.2]} 23. Qd2 {[%clk 0:00:42.7]} 23... Rd7 {[%clk
0:01:23.1]} 24. Rd1 {[%clk 0:00:40.1]} 24... Rcd8 {[%clk 0:01:22.2]} 25. Bc6
{[%clk 0:00:39.8]} 25... Rc7 {[%clk 0:01:22.3]} 26. Qd5 {[%clk 0:00:34.2]} 26...
Rcc8 {[%clk 0:01:21.1]} 27. Qe4 {[%clk 0:00:16.8]} 27... f5 {[%clk 0:01:11.9]}
28. Bd5+ {[%clk 0:00:16.2]} 28... Kg7 {[%clk 0:01:07.3]} 29. Qa4 {[%clk
0:00:11.2]} 29... Bb8 {[%clk 0:01:05.9]} 30. h4 {[%clk 0:00:10.1]} 30... Kh6
{[%clk 0:00:53.7]} 31. Ba2 {[%clk 0:00:09.8]} 31... Rxd1+ {[%clk 0:00:50.1]} 32.
Qxd1 {[%clk 0:00:10.7]} 32... Rd8 {[%clk 0:00:50.5]} 33. Qc1 {[%clk 0:00:10.8]}
33... e4 {[%clk 0:00:50]} 34. Ng5 {[%clk 0:00:11.2]} 34... Rf8 {[%clk
0:00:42.5]} 35. g3 {[%clk 0:00:10.5]} 35... Bd6 {[%clk 0:00:26.6]} 36. Qd2
{[%clk 0:00:08.5]} 36... f4 {[%clk 0:00:20.8]} 37. exf4 {[%clk 0:00:07.4]} 37...
Bc5 {[%clk 0:00:21.4]} 38. Ne6 {[%clk 0:00:06]} 38... e3 {[%clk 0:00:14]} 39.
fxe3 {[%clk 0:00:06]} 39... Re8 {[%clk 0:00:13.1]} 40. Bg7+ {[%clk 0:00:05.7]}
40... Qxg7 {[%clk 0:00:13.5]} 41. Nxg7 {[%clk 0:00:05.8]} 41... Bxe3+ {[%clk
0:00:14.4]} 42. Kg2 {[%clk 0:00:05.5]} 42... Bxd2 {[%clk 0:00:10.1]} 43. Nxe8
{[%clk 0:00:06.1]} 43... Bc1 {[%clk 0:00:11]} 44. b4 {[%clk 0:00:04.1]} 44...
Bxa3 {[%clk 0:00:11.2]} 45. b5 {[%clk 0:00:05]} 45... Be7 {[%clk 0:00:10.1]} 46.
Nc7 {[%clk 0:00:05.4]} 46... Bc5 {[%clk 0:00:09.9]} 47. Nd5 {[%clk 0:00:06]}
47... Kg7 {[%clk 0:00:10.5]} 48. Kf3 {[%clk 0:00:06.6]} 48... Kf8 {[%clk
0:00:10.4]} 49. Ke4 {[%clk 0:00:07.3]} 49... Kf7 {[%clk 0:00:10.3]} 50. Nxb6+
{[%clk 0:00:06.7]} 1-0